fUST/lending_fUST_20240306
["ID","MTS","AMOUNT","RATE_DAILY","PERIOD"]
[317013919,1709668248397,-1225.61,0.00023999,2]
[317013921,1709668248406,-1225.61,0.00023999,2]
[317013923,1709668248415,-1225.61,0.00023999,2]
[317013925,1709668248425,-1225.61,0.00023999,2]
[317013927,1709668248434,-1225.61,0.00023999,2]
[317013928,1709668248444,-1225.61,0.00023999,2]
[317013937,1709668248529,-1225.61,0.00023999,2]
[317013939,1709668248539,-1225.61,0.00023999,2]
[317013941,1709668248548,-1225.61,0.00023999,2]
[317013944,1709668248561,-1225.61,0.00023999,2]
[317013946,1709668248570,-1225.61,0.00023999,2]
[317013948,1709668248579,-1225.61,0.00023999,2]
[317013949,1709668248589,-1225.61,0.00023999,2]
[317013950,1709668248599,-1225.84199209,0.00023999,2]
[317013952,1709668248608,-163131.23576178,0.00024,5]
[317013960,1709668248677,-3102.35,0.00024,5]
[317013961,1709668248690,-2819.92440725,0.00024,5]
[317013963,1709668248703,-663.26217367,0.00024,5]
[317013965,1709668248715,-2335.9816448,0.00024,5]
[317013967,1709668248727,-149182.60268606,0.00024,5]
[317013969,1709668248738,-636.268522,0.00024,5]
[317013971,1709668248749,-1281.0,0.00024,5]
[317013973,1709668248761,-2902.899997,0.00024,5]
[317013974,1709668248773,-11405.19996,0.00024,5]
[317013976,1709668248785,-311500.0,0.00024,5]
[317013978,1709668248800,-124959.33916296,0.00024,5]
[317014272,1709668253293,-337.75201936,0.000219,2]
[317014274,1709668253306,-500.0,0.0002222,2]
[317014277,1709668253323,-500.0,0.0002222,2]
[317014279,1709668253334,-500.0,0.0002222,2]
[317014281,1709668253346,-500.0,0.0002222,2]
[317014283,1709668253357,-500.0,0.0002222,2]
[317014285,1709668253368,-500.0,0.0002222,2]
[317014287,1709668253378,-500.0,0.0002222,2]
[317014289,1709668253388,-500.0,0.0002222,2]
[317014292,1709668253400,-230.19887,0.0002222,2]
[317014296,1709668253414,-269.80113,0.0002222,2]
[317014299,1709668253425,-500.0,0.0002222,2]
[317014302,1709668253436,-500.0,0.0002222,2]
[317014306,1709668253449,-500.0,0.0002222,2]
[317014310,1709668253461,-500.0,0.0002222,2]
[317014313,1709668253474,-500.0,0.0002222,2]
[317014316,1709668253485,-500.0,0.0002222,2]
[317014320,1709668253497,-500.0,0.0002222,2]
[317014322,1709668253509,-500.0,0.0002222,2]
[317014324,1709668253521,-500.0,0.0002222,2]
[317014326,1709668253531,-500.0,0.0002222,2]
[317014328,1709668253540,-500.0,0.0002222,2]
[317014330,1709668253550,-250.0,0.0002222,2]
[317014332,1709668253566,-500.0,0.0002222,2]
[317014334,1709668253578,-500.0,0.0002222,2]
[317014336,1709668253588,-500.0,0.0002222,2]
[317014339,1709668253599,-500.0,0.0002222,2]
[317014341,1709668253612,-500.0,0.0002222,2]
[317014343,1709668253623,-500.0,0.0002222,2]
[317014345,1709668253634,-500.0,0.0002222,2]
[317014348,1709668253646,-500.0,0.0002222,2]
[317014350,1709668253656,-500.0,0.0002222,2]
[317014352,1709668253667,-155.06047358,0.00023998,2]
[317014354,1709668253680,-67137.54476929,0.00024,5]
[317014361,1709668253732,-500.0,0.0002222,2]
[317014363,1709668253744,-571600.76955852,0.00024,5]
[317014365,1709668253759,-12399.99833304,0.00024,5]
[317018267,1709668472287,311.24841407,0.000176,2]
[317018283,1709668610750,155.02790502,0.000176,2]
[317018284,1709668628786,259.60999398,0.000176,2]
[317018286,1709668781717,400.093052,0.00018838,2]
[317018339,1709669019458,155.15981461,0.00018838,2]
[317018356,1709669100331,262.53732073,0.00019109,7]
[317018357,1709669146110,-745.22315814,0.00019103,2]
[317018358,1709669146130,-155.06202481,0.00019103,2]
[317018359,1709669146151,-155.06202481,0.00019103,2]
[317018360,1709669146170,-155.06202481,0.00019104,2]
[317018361,1709669146190,-1880.71104706,0.00019104,2]
[317018362,1709669146210,-155.06202481,0.00019104,2]
[317018363,1709669146230,-155.06202481,0.00019105,2]
[317018364,1709669146250,-3141.89760772,0.00019105,2]
[317018365,1709669146270,-155.05892239,0.00019106,2]
[317018366,1709669146290,-155.05892239,0.00019106,2]
[317018367,1709669146310,-1635.78029604,0.00019106,2]
[317018368,1709669146331,-163.29643085,0.00019106,2]
[317018369,1709669146350,-8606.87493274,0.00019106,2]
[317018370,1709669146370,-155.06202481,0.00019106,2]
[317018371,1709669146392,-155.06047358,0.00019107,2]
[317018372,1709669146415,-155.05892239,0.00019107,2]
[317018373,1709669146435,-155.05892239,0.00019107,2]
[317018374,1709669146456,-155.05892239,0.00019107,2]
[317018375,1709669146476,-557.91222225,0.00019107,2]
[317018376,1709669146495,-155.06047358,0.00019108,2]
[317018377,1709669146515,-155.06047358,0.00019109,2]
[317018378,1709669146535,-155.06047358,0.00019109,2]
[317018379,1709669146556,-2113.35902263,0.00019109,2]
[317018380,1709669146577,-176.31919157,0.0001911,2]
[317018381,1709669146596,-15244.78488328,0.0001911,2]
[317018382,1709669146615,-155.82570647,0.00019111,2]
[317018383,1709669146635,-428.86816124,0.00019111,2]
[317018384,1709669146658,-155.05271792,0.00019111,2]
[317018385,1709669146680,-1473.11926256,0.00019111,2]
[317018386,1709669146702,-155.05271792,0.00019111,2]
[317018387,1709669146723,-1605.3304544,0.00019112,2]
[317018388,1709669146743,-197.0,0.00019122,2]
[317018389,1709669146764,-2512.25613285,0.00019124,2]
[317018390,1709669146787,-24900.0,0.00019131,2]
[317018391,1709669146809,-172.126998,0.00019178,2]
[317018392,1709669146829,-318.32639865,0.000195,2]
[317018393,1709669146848,-501.90811861,0.000199,2]
[317018394,1709669146868,-992.082566,0.00019943,2]
[317018395,1709669146887,-193.34493299,0.0002,2]
[317018396,1709669146908,-151.61197063,0.0002,2]
[317018397,1709669146928,-781.7867124,0.00020298,2]
[317018398,1709669146948,-238.70171817,0.00020299,2]
[317018399,1709669146969,-172.126998,0.000203,2]
[317018400,1709669146991,-638.6041283,0.0002094,2]
[317018401,1709669147013,-278.39,0.00020989,3]
[317018402,1709669147040,-835.21,0.00020989,3]
[317018403,1709669147066,-500.0,0.00020998,2]
[317018404,1709669147088,-500.0,0.00020998,2]
[317018405,1709669147109,-500.0,0.00020998,2]
[317018406,1709669147130,-500.0,0.00020998,2]
[317018407,1709669147153,-500.0,0.00020998,2]
[317018408,1709669147177,-500.0,0.00020998,2]
[317018409,1709669147203,-500.0,0.00020998,2]
[317018410,1709669147235,-500.0,0.00020998,2]
[317018411,1709669147257,-500.0,0.00020998,2]
[317018412,1709669147280,-500.0,0.00020998,2]
[317018413,1709669147301,-500.0,0.00020998,2]
[317018414,1709669147322,-162.72642051,0.00020998,2]
[317018415,1709669147345,-500.0,0.00020998,2]
[317018416,1709669147366,-416.67245786,0.00020998,2]
[317018417,1709669147388,-500.0,0.00020998,2]
[317018418,1709669147412,-500.0,0.00020998,2]
[317018419,1709669147433,-228.50654825,0.00020998,2]
[317018420,1709669147453,-500.0,0.00020998,2]
[317018421,1709669147473,-500.0,0.00020998,2]
[317018422,1709669147495,-500.0,0.00020998,2]
[317018423,1709669147516,-244.87305961,0.00020998,2]
[317018424,1709669147536,-500.0,0.00020998,2]
[317018425,1709669147555,-500.0,0.00020998,2]
[317018426,1709669147577,-500.0,0.00020998,2]
[317018427,1709669147598,-500.0,0.00020998,2]
[317018428,1709669147618,-500.0,0.00020998,2]
[317018429,1709669147639,-500.0,0.00020998,2]
[317018430,1709669147667,-500.0,0.00020998,2]
[317018431,1709669147687,-343.20529178,0.00020998,2]
[317018432,1709669147706,-500.0,0.00020998,2]
[317018433,1709669147727,-500.0,0.00020998,2]
[317018434,1709669147747,-500.0,0.00020998,2]
[317018435,1709669147767,-500.0,0.00020998,2]
[317018436,1709669147788,-500.0,0.00020998,2]
[317018437,1709669147809,-500.0,0.00020998,2]
[317018438,1709669147829,-500.0,0.00020998,2]
[317018439,1709669147939,-500.0,0.00020998,2]
[317018440,1709669147959,-500.0,0.00020998,2]
[317018441,1709669147980,-500.0,0.00020998,2]
[317018442,1709669148004,-500.0,0.00020998,2]
[317018443,1709669148028,-500.0,0.00020998,2]
[317018444,1709669148050,-500.0,0.00020998,2]
[317018445,1709669148070,-495.52313997,0.00020998,2]
[317018446,1709669148091,-500.0,0.00020998,2]
[317018447,1709669148112,-500.0,0.00020998,2]
[317018448,1709669148133,-500.0,0.00020998,2]
[317018449,1709669148156,-500.0,0.00020998,2]
[317018450,1709669148176,-500.0,0.00020998,2]
[317018451,1709669148198,-500.0,0.00020998,2]
[317018452,1709669148220,-266.9230076,0.00020998,2]
[317018455,1709669214183,856.41945695,0.00019099,2]
[317018456,1709669218124,-155.02015262,0.000191,2]
[317018457,1709669218144,-703.45953046,0.00019101,2]
[317018458,1709669218167,-501.83445219,0.000199,2]
[317018459,1709669218188,-3783.75584457,0.00021,2]
[317018460,1709669218210,-2154.67592739,0.00021,2]
[317018461,1709669242121,-1080.43819401,0.00020999,2]
[317018462,1709669242143,-17096.58015599,0.00021,2]
[317018463,1709669248258,-34911.562479,0.00021,2]
[317018464,1709669248282,-3234.1600215,0.00021378,2]
[317018465,1709669248306,-172.126998,0.00021422,2]
[317018466,1709669248331,-992.79572428,0.000219,2]
[317018467,1709669248355,-176.796146,0.00021918,2]
[317018468,1709669248377,-620.93020642,0.00021987,2]
[317018469,1709669248400,-354.37392672,0.00022,2]
[317018470,1709669248423,-194.0,0.00022,2]
[317018471,1709669248445,-1667.68500194,0.00022,2]
[317018472,1709669248467,-194.0,0.00022192,2]
[317018473,1709669248494,-1001.37835507,0.000225,2]
[317018474,1709669248518,-214.94,0.00022939,3]
[317018475,1709669248539,-155.01395126,0.00022944,2]
[317018476,1709669248561,-163.29643085,0.00022945,2]
[317018477,1709669248582,-1605.3304544,0.00022945,2]
[317018478,1709669248604,-155.01240099,0.00022945,2]
[317018479,1709669248628,-155.82570647,0.00022945,2]
[317018480,1709669248648,-238.70171817,0.00022945,2]
[317018481,1709669248669,-428.86816124,0.00022945,2]
[317018482,1709669248691,-155.01240099,0.00022946,2]
[317018483,1709669248711,-155.01240099,0.00022946,2]
[317018484,1709669248736,-155.01240099,0.00022946,2]
[317018485,1709669248755,-155.01240099,0.00022946,2]
[317018486,1709669248867,-155.01240099,0.00022946,2]
[317018487,1709669248889,-3141.89760772,0.00022946,2]
[317018488,1709669248911,-176.31919157,0.00022946,2]
[317018489,1709669248933,-155.01240099,0.00022947,2]
[317018490,1709669248956,-155.01240099,0.00022947,2]
[317018491,1709669248984,-155.01240099,0.00022947,2]
[317018492,1709669249010,-745.22315814,0.00022947,2]
[317018493,1709669249041,-155.02015262,0.00022948,2]
[317018494,1709669249061,-1880.71104706,0.00022948,2]
[317018495,1709669249082,-155.02015262,0.00022948,2]
[317018496,1709669249104,-155.02015262,0.00022948,2]
[317018497,1709669249125,-557.91222225,0.00022948,2]
[317018498,1709669249145,-155.02015262,0.00022948,2]
[317018499,1709669249167,-1473.11926256,0.00022948,2]
[317018500,1709669249190,-15244.78488328,0.00022948,2]
[317018501,1709669249211,-155.01240099,0.00022948,2]
[317018502,1709669249236,-1635.78029604,0.00022948,2]
[317018503,1709669249259,-155.01240099,0.00022948,2]
[317018504,1709669249280,-2113.35902263,0.00022948,2]
[317018505,1709669249303,-500.0,0.00022949,2]
[317018506,1709669249324,-277.28034889,0.00022949,2]
[317018507,1709669249344,-500.0,0.00022949,2]
[317018508,1709669249365,-500.0,0.00022949,2]
[317018509,1709669249386,-500.0,0.00022949,2]
[317018510,1709669249408,-500.0,0.00022949,2]
[317018511,1709669249429,-500.0,0.00022949,2]
[317018512,1709669249450,-500.0,0.00022949,2]
[317018513,1709669249471,-500.0,0.00022949,2]
[317018514,1709669249499,-500.0,0.00022949,2]
[317018515,1709669249520,-500.0,0.00022949,2]
[317018516,1709669249541,-500.0,0.00022949,2]
[317018517,1709669249563,-500.0,0.00022949,2]
[317018518,1709669249583,-500.0,0.00022949,2]
[317018519,1709669249604,-500.0,0.00022949,2]
[317018520,1709669249624,-500.0,0.00022949,2]
[317018521,1709669249645,-500.0,0.00022949,2]
[317018522,1709669249667,-500.0,0.00022949,2]
[317018523,1709669249689,-500.0,0.00022949,2]
[317018524,1709669249711,-361.8147125,0.00022949,2]
[317018525,1709669249735,-500.0,0.00022949,2]
[317018526,1709669249756,-500.0,0.00022949,2]
[317018527,1709669249777,-500.0,0.00022949,2]
[317018528,1709669249799,-500.0,0.00022949,2]
[317018529,1709669249820,-500.0,0.00022949,2]
[317018530,1709669249842,-500.0,0.00022949,2]
[317018531,1709669249863,-500.0,0.00022949,2]
[317018532,1709669249884,-500.0,0.00022949,2]
[317018533,1709669249904,-500.0,0.00022949,2]
[317018534,1709669249925,-500.0,0.00022949,2]
[317018535,1709669249945,-500.0,0.00022949,2]
[317018536,1709669249965,-500.0,0.00022949,2]
[317018537,1709669249989,-500.0,0.00022949,2]
[317018538,1709669250014,-500.0,0.00022949,2]
[317018539,1709669250036,-500.0,0.00022949,2]
[317018540,1709669250057,-500.0,0.00022949,2]
[317018541,1709669250078,-500.0,0.00022949,2]
[317018542,1709669250101,-500.0,0.00022949,2]
[317018543,1709669250122,-500.0,0.00022949,2]
[317018544,1709669250144,-500.0,0.00022949,2]
[317018545,1709669250165,-500.0,0.00022949,2]
[317018546,1709669250188,-500.0,0.00022949,2]
[317018547,1709669250209,-500.0,0.00022949,2]
[317018548,1709669250233,-500.0,0.00022949,2]
[317018549,1709669250254,-500.0,0.00022949,2]
[317018550,1709669250276,-500.0,0.00022949,2]
[317018551,1709669250297,-500.0,0.00022949,2]
[317018552,1709669250318,-235.16124023,0.00022949,2]
[317018553,1709669250340,-500.0,0.00022949,2]
[317018554,1709669250364,-500.0,0.00022949,2]
[317018555,1709669250385,-500.0,0.00022949,2]
[317018556,1709669250406,-500.0,0.00022949,2]
[317018557,1709669250428,-500.0,0.00022949,2]
[317018558,1709669250449,-500.0,0.00022949,2]
[317018559,1709669250471,-500.0,0.00022949,2]
[317018560,1709669250495,-500.0,0.00022949,2]
[317018561,1709669250519,-500.0,0.00022949,2]
[317018562,1709669250540,-500.0,0.00022949,2]
[317018563,1709669250561,-500.0,0.00022949,2]
[317018564,1709669250584,-500.0,0.00022949,2]
[317018565,1709669250608,-500.0,0.00022949,2]
[317018566,1709669250630,-500.0,0.00022949,2]
[317018567,1709669250653,-500.0,0.00022949,2]
[317018568,1709669250675,-500.0,0.00022949,2]
[317018569,1709669250697,-500.0,0.00022949,2]
[317018570,1709669250721,-500.0,0.00022949,2]
[317018571,1709669250745,-358.66269661,0.00022949,2]
[317018572,1709669250766,-500.0,0.00022949,2]
[317018573,1709669250788,-500.0,0.00022949,2]
[317018574,1709669250809,-500.0,0.00022949,2]
[317018575,1709669250830,-500.0,0.00022949,2]
[317018576,1709669250851,-500.0,0.00022949,2]
[317018577,1709669250872,-500.0,0.00022949,2]
[317018578,1709669250893,-500.0,0.00022949,2]
[317018579,1709669250915,-500.0,0.00022949,2]
[317018580,1709669250936,-500.0,0.00022949,2]
[317018581,1709669250956,-500.0,0.00022949,2]
[317018582,1709669250981,-500.0,0.00022949,2]
[317018583,1709669251003,-500.0,0.00022949,2]
[317018584,1709669251028,-500.0,0.00022949,2]
[317018585,1709669251048,-307.56457983,0.00022949,2]
[317018586,1709669251071,-500.0,0.00022949,2]
[317018587,1709669251091,-500.0,0.00022949,2]
[317018588,1709669251115,-500.0,0.00022949,2]
[317018589,1709669251136,-500.0,0.00022949,2]
[317018590,1709669251158,-506.19471664,0.0002295,4]
[317018591,1709669251279,-6964.19749989,0.0002295,4]
[317018592,1709669251303,-1763.63752932,0.0002295,4]
[317018593,1709669251326,-615.47411823,0.0002295,2]
[317018594,1709669251349,-7679.29800061,0.0002295,4]
[317018595,1709669251373,-826.68840998,0.0002295,2]
[317018596,1709669251398,-2000.0,0.00023,2]
[317018597,1709669251419,-155.0,0.00023,2]
[317018598,1709669251440,-194.0,0.00023014,2]
[317018599,1709669251461,-3388.94404036,0.00023065,2]
[317018600,1709669251483,-197.39114144,0.0002307,2]
[317018601,1709669251507,-500.0,0.0002307,2]
[317018602,1709669251529,-500.0,0.0002307,2]
[317018603,1709669251551,-631.6618633,0.0002307,2]
[317018604,1709669251573,-200.35862019,0.0002307,2]
[317018605,1709669251594,-500.0,0.0002307,2]
[317018606,1709669251616,-182.58178617,0.0002307,2]
[317018607,1709669251636,-500.0,0.0002307,2]
[317018608,1709669251658,-548.24162307,0.0002307,2]
[317018609,1709669251678,-210.71062601,0.0002307,2]
[317018610,1709669251700,-798.55,0.0002307,2]
[317018611,1709669251722,-798.55,0.0002307,2]
[317018612,1709669251748,-798.55,0.0002307,2]
[317018613,1709669251770,-798.55,0.0002307,2]
[317018614,1709669251791,-798.55,0.0002307,2]
[317018615,1709669251811,-798.55,0.0002307,2]
[317018616,1709669251831,-798.55,0.0002307,2]
[317018617,1709669251853,-157854.17433279,0.00023071,2]
[317019479,1709669441776,-413.256114,0.00020553,2]
[317019481,1709669441786,-155.09771156,0.00021778,2]
[317019483,1709669441796,-155.06667867,0.00021778,2]
[317019485,1709669441806,-155.06667867,0.00021778,2]
[317019487,1709669441815,-155.06667867,0.00021778,2]
[317019489,1709669441827,-155.07753877,0.00021779,2]
[317019491,1709669441836,-703.45953046,0.00021779,2]
[317019493,1709669441846,-155.0,0.0002178,2]
[317019495,1709669441856,-2413.04416275,0.00021994,2]
[317019500,1709669441930,-10644.2831096,0.00021994,2]
[317019561,1709669442552,-1645.82327385,0.00021994,2]
[317019563,1709669442562,-155.03875969,0.00021995,2]
[317019565,1709669442571,-155.03875969,0.00021995,2]
[317019567,1709669442582,-1635.78029604,0.00021995,2]
[317019572,1709669442592,-155.02170304,0.00021996,2]
[317019576,1709669442601,-163.29643085,0.00021996,2]
[317019580,1709669442613,-1880.71104706,0.00021996,2]
[317019584,1709669442624,-155.03875969,0.00021996,2]
[317019586,1709669442634,-155.03875969,0.00021996,2]
[317019590,1709669442644,-155.03875969,0.00021996,2]
[317019594,1709669442654,-155.0,0.00022,2]
[317019597,1709669442663,-24900.0,0.00022036,2]
[317019600,1709669442674,-620.3524566,0.0002224,2]
[317019603,1709669442687,-173.55413267,0.00022955,2]
[317019606,1709669442698,-155.0,0.00023014,2]
[317019608,1709669442708,-484.64607917,0.0002307,2]
[317019609,1709669442719,-500.0,0.0002307,2]
[317019611,1709669442729,-500.0,0.0002307,2]
[317019613,1709669442739,-500.0,0.0002307,2]
[317019621,1709669442750,-526.12902669,0.0002307,2]
[317019627,1709669442761,-500.0,0.0002307,2]
[317019634,1709669442772,-500.0,0.0002307,2]
[317019640,1709669442783,-500.0,0.0002307,2]
[317019646,1709669442794,-500.0,0.0002307,2]
[317019650,1709669442804,-166.62272764,0.0002307,2]
[317019657,1709669442814,-500.0,0.0002307,2]
[317019662,1709669442824,-500.0,0.0002307,2]
[317019667,1709669442834,-500.0,0.0002307,2]
[317019671,1709669442844,-500.0,0.0002307,2]
[317019674,1709669442853,-500.0,0.0002307,2]
[317019677,1709669442866,-500.0,0.0002307,2]
[317019680,1709669442876,-500.0,0.0002307,2]
[317019683,1709669442887,-500.0,0.0002307,2]
[317019685,1709669442896,-500.0,0.0002307,2]
[317019687,1709669442906,-519.8777827,0.0002307,2]
[317019689,1709669442916,-500.0,0.0002307,2]
[317019691,1709669442925,-160.22997542,0.0002307,2]
[317019693,1709669442937,-409.16272625,0.0002307,2]
[317019694,1709669442947,-500.0,0.0002307,2]
[317019695,1709669442957,-345.7200009,0.0002307,2]
[317019696,1709669442967,-500.0,0.0002307,2]
[317019697,1709669442977,-500.0,0.0002307,2]
[317019698,1709669442987,-500.0,0.0002307,2]
[317019699,1709669442997,-500.0,0.0002307,2]
[317019704,1709669443007,-208.09055956,0.0002307,2]
[317019709,1709669443018,-500.0,0.0002307,2]
[317019713,1709669443028,-500.0,0.0002307,2]
[317019717,1709669443037,-500.0,0.0002307,2]
[317019720,1709669443047,-500.0,0.0002307,2]
[317019723,1709669443061,-500.0,0.0002307,2]
[317019726,1709669443072,-500.0,0.0002307,2]
[317019729,1709669443087,-500.0,0.0002307,2]
[317019731,1709669443096,-500.0,0.0002307,2]
[317019734,1709669443106,-500.0,0.0002307,2]
[317019737,1709669443119,-500.0,0.0002307,2]
[317019739,1709669443129,-274.79590304,0.0002307,2]
[317019745,1709669443144,-225.20409696,0.0002307,2]
[317019749,1709669443154,-46.74334353,0.0002307,2]
[317019753,1709669443168,-453.25665647,0.0002307,2]
[317019757,1709669443179,-500.0,0.0002307,2]
[317019761,1709669443189,-500.0,0.0002307,2]
[317019765,1709669443199,-500.0,0.0002307,2]
[317019769,1709669443208,-500.0,0.0002307,2]
[317019773,1709669443219,-500.0,0.0002307,2]
[317019777,1709669443229,-276.45788178,0.0002307,2]
[317019781,1709669443240,-223.54211822,0.0002307,2]
[317019807,1709669443341,-249.80954586,0.0002307,2]
[317019810,1709669443352,-500.0,0.0002307,2]
[317019814,1709669443365,-165.90850712,0.0002307,2]
[317019817,1709669443376,-500.0,0.0002307,2]
[317019820,1709669443386,-500.0,0.0002307,2]
[317019823,1709669443396,-500.0,0.0002307,2]
[317019826,1709669443406,-500.0,0.0002307,2]
[317019829,1709669443416,-500.0,0.0002307,2]
[317019832,1709669443426,-500.0,0.0002307,2]
[317019835,1709669443436,-600.0,0.0002307,2]
[317019838,1709669443449,-181.58,0.0002307,2]
[317019840,1709669443458,-7169.1598288,0.00023071,2]
[317019872,1709669443625,-176.31919157,0.00021778,2]
[317019875,1709669443636,-716.49,0.00023061,3]
[317019877,1709669443646,-1536.26883041,0.00023071,2]
[317019879,1709669443658,-6150.0,0.00023071,2]
[317019881,1709669443671,-13759.15598069,0.00023071,2]
[317019883,1709669443683,-1397.7,0.00023071,2]
[317019886,1709669443695,-88133.54102731,0.00023071,2]
[317019887,1709669443705,-155.00620025,0.00023071,2]
[317019889,1709669443715,-2019.0835997,0.00023078,2]
[317019892,1709669443726,-500.0,0.00023165,2]
[317019893,1709669443735,-500.0,0.00023165,2]
[317019895,1709669443745,-500.0,0.00023165,2]
[317019897,1709669443755,-500.0,0.00023165,2]
[317019899,1709669443764,-416.10638814,0.00023165,2]
[317019901,1709669443774,-7594.65557257,0.00023166,6]
[317019903,1709669443784,-50000.0,0.00023166,3]
[317019905,1709669443793,-73415.84198704,0.00023166,3]
[317019907,1709669443802,-37258.12289671,0.00023167,3]
[317019909,1709669443812,-10028.45763998,0.00023167,3]
[317019911,1709669443823,-2019.08359962,0.00023169,2]
[317019913,1709669443832,-200.8478084,0.00023178,2]
[317019915,1709669443842,-348.97771817,0.00023187,2]
[317019917,1709669443852,-2019.08359962,0.00023261,2]
[317019919,1709669443861,-3388.94404032,0.00023274,2]
[317019921,1709669443875,-799.73030719,0.00023287,3]
[317019923,1709669443885,-500.0,0.00023287,2]
[317019925,1709669443897,-500.0,0.00023287,2]
[317019928,1709669443907,-500.0,0.00023287,2]
[317019932,1709669443916,-500.0,0.00023287,2]
[317019935,1709669443926,-500.0,0.00023287,2]
[317019937,1709669443935,-407.12193692,0.00023287,2]
[317019939,1709669443945,-214.18205637,0.00023287,2]
[317019940,1709669443955,-500.0,0.00023287,2]
[317019942,1709669443965,-500.0,0.00023287,2]
[317019944,1709669443975,-500.0,0.00023287,2]
[317019946,1709669443984,-500.0,0.00023287,2]
[317019949,1709669443994,-500.0,0.00023287,2]
[317019952,1709669444003,-500.0,0.00023287,2]
[317019955,1709669444012,-501.20052606,0.00023287,2]
[317019958,1709669444022,-500.0,0.00023287,2]
[317019960,1709669444032,-500.0,0.00023287,2]
[317019963,1709669444041,-616.07707314,0.00023287,2]
[317019966,1709669444051,-500.0,0.00023287,2]
[317019969,1709669444060,-501.68217201,0.00023287,2]
[317019972,1709669444070,-500.0,0.00023287,2]
[317019975,1709669444085,-184.78772519,0.00023287,2]
[317019978,1709669444095,-231.81109289,0.00023287,2]
[317019981,1709669444104,-501.6599369,0.00023287,2]
[317019984,1709669444116,-500.0,0.00023287,2]
[317019987,1709669444127,-500.0,0.00023287,2]
[317019990,1709669444137,-500.0,0.00023287,2]
[317019993,1709669444146,-188.31799289,0.00023287,2]
[317019996,1709669444156,-220.0,0.00023287,2]
[317019998,1709669444166,-220.0,0.00023287,2]
[317020000,1709669444176,-500.0,0.00023287,2]
[317020003,1709669444188,-500.0,0.00023287,2]
[317020006,1709669444198,-500.0,0.00023287,2]
[317020009,1709669444207,-500.0,0.00023287,2]
[317020012,1709669444217,-349.58705847,0.00023287,2]
[317020015,1709669444226,-500.0,0.00023287,2]
[317020018,1709669444237,-500.0,0.00023287,2]
[317020021,1709669444247,-500.0,0.00023287,2]
[317020024,1709669444257,-500.0,0.00023287,2]
[317020027,1709669444267,-500.0,0.00023287,2]
[317020030,1709669444277,-500.0,0.00023287,2]
[317020033,1709669444287,-500.0,0.00023287,2]
[317020036,1709669444298,-500.0,0.00023287,2]
[317020039,1709669444309,-380.38419642,0.00023287,2]
[317020042,1709669444320,-500.0,0.00023287,2]
[317020045,1709669444331,-500.0,0.00023287,2]
[317020047,1709669444341,-500.0,0.00023287,2]
[317020050,1709669444352,-500.0,0.00023287,2]
[317020054,1709669444367,-500.0,0.00023287,2]
[317020056,1709669444378,-500.0,0.00023287,2]
[317020060,1709669444390,-500.0,0.00023287,2]
[317020062,1709669444399,-500.6436259,0.00023287,2]
[317020064,1709669444409,-500.0,0.00023287,2]
[317020068,1709669444419,-500.0,0.00023287,2]
[317020070,1709669444428,-342.43900113,0.00023287,2]
[317020074,1709669444439,-500.0,0.00023287,2]
[317020076,1709669444450,-500.0,0.00023287,2]
[317020080,1709669444461,-500.0,0.00023287,2]
[317020083,1709669444471,-500.0,0.00023287,2]
[317020086,1709669444480,-500.0,0.00023287,2]